fUSD/lending_fUSD_20260118
["ID","MTS","AMOUNT","RATE_DAILY","PERIOD"]
[402585139,1768713071498,-158.690073,0.000179,2]
[402585140,1768713071508,-373.132901,0.000179,2]
[402585141,1768713071518,-158.690073,0.000179,2]
[402585142,1768713071527,-373.132901,0.000179,2]
[402585143,1768713071536,-159.81012096,0.000179,2]
[402585144,1768713071546,-623.063882,0.000179,2]
[402585145,1768713071555,-151.0,0.000179,2]
[402585146,1768713071564,-159.81012084,0.000179,2]
[402585147,1768713071573,-623.063882,0.000179,2]
[402585148,1768713071583,-151.0,0.000179,2]
[402585149,1768713071592,-420.59964,0.000179,2]
[402585150,1768713071602,-623.063882,0.000179,2]
[402585151,1768713071611,-420.59964,0.000179,2]
[402585152,1768713071622,-623.063882,0.000179,2]
[402585153,1768713071633,-164.625608,0.000179,2]
[402585154,1768713071643,-1123.767592,0.000179,2]
[402585155,1768713071652,-159.81012084,0.000179,2]
[402585156,1768713071663,-702.73812023,0.000179,2]
[402585157,1768713072099,-304.504201,0.0001726,2]
[402585158,1768713072109,-375.826242,0.0001726,2]
[402585159,1768713072119,-79.23001777,0.000179,2]
[402585160,1768713072129,-129.97193463,0.000179,2]
[402585161,1768713072763,-17.97512595,0.00015244,2]
[402585162,1768713072824,-1121.02487405,0.00015244,2]
[402585163,1768713072834,-500.0,0.00016438,2]
[402585164,1768713072843,-500.0,0.00016712,2]
[402585165,1768713072852,-500.0,0.00016986,2]
[402585166,1768713072861,-214.278824,0.0001726,2]
[402585167,1768713072871,-500.0,0.0001726,2]
[402585168,1768713072880,-28.83456426,0.0001726,2]
[402585169,1768713072894,-122.16543574,0.0001726,2]
[402585170,1768713072903,-304.504201,0.0001726,2]
[402585171,1768713072912,-375.826242,0.0001726,2]
[402585172,1768713072921,-233.527077,0.0001726,2]
[402585173,1768713072930,-214.278824,0.0001726,2]
[402585174,1768713072939,-306.25253649,0.00017534,2]
[402585175,1768713073504,-1139.0,0.00015299,2]
[402585176,1768713073513,-279.4,0.00015353,2]
[402585314,1768713913298,810.58111631,0.00013342,2]
[402585315,1768713913322,290.41888369,0.00013342,2]
[402585316,1768713918143,1101.0,0.00013342,2]
[402585318,1768713923036,1101.0,0.00013342,2]
[402585319,1768713927936,1101.0,0.00013342,2]
[402585398,1768714164134,-1101.0,0.00013436,2]
[402585399,1768714164159,-300.0,0.00013834,2]
[402585400,1768714164185,-441.73174422,0.00013834,2]
[402585401,1768714164210,-500.0,0.00013835,2]
[402585402,1768714164234,-500.0,0.00013835,2]
[402585403,1768714164257,-264.0,0.00013835,2]
[402585404,1768714164281,-600.0,0.00014085,2]
[402585405,1768714164306,-1101.0,0.00014143,2]
[402585406,1768714164328,-434.51,0.00014835,2]
[402585407,1768714164350,-151.83299778,0.00014887,2]
[402585415,1768714231849,-676.92004919,0.00014887,2]
[402585417,1768714231860,-272.24695303,0.00014887,2]
[402585419,1768714231870,-195.0,0.00014943,2]
[402585420,1768714231879,-591.94069286,0.00014998,2]
[402585422,1768714231907,-608.05930714,0.00014998,2]
[402585423,1768714231916,-541.61744566,0.00014999,2]
[402585424,1768714231925,-500.0,0.00014999,2]
[402585425,1768714231934,-500.0,0.00014999,2]
[402585426,1768714231943,-500.0,0.00014999,2]
[402585427,1768714231953,-500.0,0.00014999,2]
[402585428,1768714231970,-559.82664905,0.00014999,2]
[402585429,1768714231979,-150.0,0.00014999,2]
[402585430,1768714231988,-3979.63931491,0.00015,2]
[402585431,1768714232005,-3373.61357432,0.00015,2]
[402585432,1768714232016,-1328.96893312,0.00015,2]
[402585433,1768714232024,-28779.73343918,0.00015,2]
[402585434,1768714232034,-195.0,0.00015021,2]
[402585435,1768714232043,-441.73174422,0.00015237,2]
[402585436,1768714232052,-150.0,0.00015601,2]
[402585437,1768714232061,-4017.27,0.00015644,2]
[402585438,1768714232070,-1101.0,0.00015671,2]
[402585439,1768714232079,-1600.0,0.00015762,2]
[402585440,1768714232089,-255.62,0.00015767,2]
[402585441,1768714232098,-151.0,0.00015795,2]
[402585442,1768714232107,-151.0,0.00015796,2]
[402585443,1768714232116,-151.0,0.00015824,2]
[402585444,1768714232125,-151.0,0.00015826,2]
[402585445,1768714232135,-151.0,0.00015826,2]
[402585446,1768714232144,-628.73,0.00015918,2]
[402585448,1768714232154,-483.79,0.00016082,2]
[402585449,1768714232163,-662.88,0.00016082,2]
[402585450,1768714232172,-483.79,0.00016082,2]
[402585451,1768714232181,-483.79,0.00016082,2]
[402585452,1768714232190,-662.88,0.00016082,2]
[402585453,1768714232199,-662.88,0.00016082,2]
[402585454,1768714232208,-483.79,0.00016082,2]
[402585455,1768714232218,-483.79,0.00016082,2]
[402585456,1768714232226,-662.88,0.00016082,2]
[402585457,1768714232235,-483.79,0.00016082,2]
[402585458,1768714232244,-662.88,0.00016082,2]
[402585459,1768714232254,-662.88,0.00016082,2]
[402585460,1768714232263,-483.79,0.00016082,2]
[402585461,1768714232272,-662.88,0.00016082,2]
[402585462,1768714232282,-483.79,0.00016082,2]
[402585463,1768714232291,-3012.22293031,0.00016113,2]
[402585464,1768714232301,-255.0,0.00016124,2]
[402585465,1768714232310,-150.0,0.000162,2]
[402585466,1768714232320,-150.0,0.000162,2]
[402585467,1768714232330,-150.0,0.000162,2]
[402585468,1768714232339,-150.0,0.000162,2]
[402585469,1768714232348,-150.0,0.000162,2]
[402585470,1768714232358,-150.0,0.000162,2]
[402585471,1768714232367,-150.0,0.000162,2]
[402585472,1768714232376,-150.0,0.000162,2]
[402585473,1768714232386,-150.00000001,0.000162,2]
[402585474,1768714232395,-150.0,0.000162,2]
[402585475,1768714232405,-27660.0,0.000162,2]
[402585476,1768714232414,-151.0,0.0001621,2]
[402585477,1768714232423,-698034.64355616,0.00016213,2]
[402585478,1768714232435,-37336.30031532,0.00016213,2]
[402585479,1768714232447,-86408.29390393,0.00016213,2]
[402585480,1768714232458,-154116.70601261,0.00016213,2]
[402585481,1768714232468,-703.96192003,0.00016213,2]
[402585482,1768714232479,-4023.44972155,0.00016213,2]
[402585483,1768714232512,-429.03935746,0.00016213,2]
[402585484,1768714232523,-528.12118031,0.00016213,2]
[402585485,1768714232534,-1905.14323361,0.00016213,2]
[402585486,1768714232545,-1541.76684916,0.00016213,2]
[402585487,1768714232556,-3710.18510261,0.00016213,2]
[402585488,1768714238100,-500.0,0.00016112,2]
[402585489,1768714238113,-205.67833493,0.00016112,2]
[402585490,1768714238123,-621.59704802,0.00016112,2]
[402585491,1768714238133,-11262.38884725,0.00016213,2]
[402585492,1768714238142,-153.20739094,0.00016213,2]
[402585493,1768714238151,-3012.22293027,0.00016312,2]
[402585494,1768714238162,-150.0,0.00016312,2]
[402585495,1768714238171,-500.0,0.00016356,2]
[402585496,1768714238181,-500.0,0.00016356,2]
[402585497,1768714238191,-600.0,0.00016356,2]
[402585498,1768714238200,-467.79,0.00016356,2]
[402585499,1768714238210,-179.57,0.00016356,2]
[402585500,1768714238219,-467.79,0.00016356,2]
[402585501,1768714238228,-467.79,0.00016356,2]
[402585502,1768714238237,-467.79,0.00016356,2]
[402585503,1768714238247,-467.79,0.00016356,2]
[402585504,1768714238256,-752.92,0.00016356,2]
[402585505,1768714238265,-195.0,0.00016376,2]
[402585506,1768714238275,-150.0,0.00016425,2]
[402585507,1768714238284,-561.57648892,0.00016428,2]
[402585508,1768714238293,-151.0,0.00016428,2]
[402585509,1768714238303,-151.0,0.00016428,2]
[402585510,1768714238312,-151.0,0.00016428,2]
[402585511,1768714238322,-151.0,0.00016428,2]
[402585513,1768714238331,-151.0,0.00016428,2]
[402585515,1768714238340,-151.0,0.00016428,2]
[402585517,1768714238350,-151.0,0.00016428,2]
[402585519,1768714238359,-151.0,0.00016428,2]
[402585521,1768714238368,-151.0,0.00016428,2]
[402585522,1768714238378,-287.82321844,0.00016428,2]
[402585523,1768714238388,-1000.0,0.00016437,2]
[402585524,1768714238397,-538.104,0.00016437,2]
[402585525,1768714238407,-1835.64,0.00016438,2]
[402585526,1768714238417,-500.0,0.00016438,2]
[402585527,1768714238426,-500.0,0.00016438,2]
[402585528,1768714238435,-500.0,0.00016438,2]
[402585529,1768714238444,-500.0,0.00016438,2]
[402585530,1768714238453,-500.0,0.00016438,2]
[402585531,1768714238463,-500.0,0.00016438,2]
[402585532,1768714238472,-500.0,0.00016438,2]
[402585533,1768714238481,-500.0,0.00016438,2]
[402585534,1768714238490,-500.0,0.00016438,2]
[402585535,1768714238499,-500.0,0.00016438,2]
[402585536,1768714238508,-500.0,0.00016438,2]
[402585537,1768714238518,-500.0,0.00016438,2]
[402585538,1768714238527,-500.0,0.00016438,2]
[402585539,1768714238536,-500.0,0.00016438,2]
[402585540,1768714238546,-500.0,0.00016438,2]
[402585541,1768714238555,-500.0,0.00016438,2]
[402585542,1768714238564,-542.99228611,0.00016438,2]
[402585543,1768714238573,-500.0,0.00016438,2]
[402585544,1768714238582,-500.0,0.00016438,2]
[402585545,1768714238592,-500.0,0.00016438,2]
[402585546,1768714238601,-500.0,0.00016438,2]
[402585547,1768714238610,-500.0,0.00016438,2]
[402585548,1768714238619,-500.0,0.00016438,2]
[402585549,1768714238628,-500.0,0.00016438,2]
[402585550,1768714238638,-500.0,0.00016438,2]
[402585551,1768714238647,-500.0,0.00016438,2]
[402585552,1768714238656,-404.22329371,0.00016438,2]
[402585553,1768714238666,-500.0,0.00016438,2]
[402585554,1768714238675,-500.0,0.00016438,2]
[402585555,1768714238684,-507.93024453,0.00016438,2]
[402585556,1768714238693,-500.0,0.00016438,2]
[402585557,1768714238703,-500.0,0.00016438,2]
[402585558,1768714238712,-500.0,0.00016438,2]
[402585559,1768714238721,-500.0,0.00016438,2]
[402585560,1768714238731,-479.08895728,0.00016438,2]
[402585561,1768714238740,-500.0,0.00016438,2]
[402585562,1768714238750,-500.0,0.00016438,2]
[402585563,1768714238759,-500.0,0.00016438,2]
[402585564,1768714238769,-519.33931866,0.00016438,2]
[402585565,1768714238778,-500.0,0.00016438,2]
[402585566,1768714238787,-500.0,0.00016438,2]
[402585567,1768714238797,-175.05748094,0.00016438,2]
[402585568,1768714238806,-500.0,0.00016438,2]
[402585569,1768714238816,-500.0,0.00016438,2]
[402585570,1768714238826,-500.0,0.00016438,2]
[402585571,1768714238835,-539.67,0.00016438,2]
[402585572,1768714238844,-292.06803294,0.00016438,2]
[402585573,1768714238853,-1101.0,0.00016455,2]
[402585574,1768714238863,-1680.0,0.00016498,2]
[402585575,1768714238872,-150.0,0.000165,2]
[402585576,1768714238881,-3012.22293027,0.0001651,2]
[402585577,1768714238891,-2500.0,0.00016511,2]
[402585578,1768714238901,-163.34716985,0.00016512,2]
[402585579,1768714238910,-2764.28778308,0.00016514,2]
[402585580,1768714238920,-628.73,0.00016515,2]
[402585581,1768714238929,-150.0,0.00016537,2]
[402585582,1768714238938,-1516.26585409,0.00016541,2]
[402585583,1768714238948,-150.0,0.0001656,2]
[402585584,1768714238958,-150.0,0.0001656,2]
[402585585,1768714238971,-150.0,0.0001656,2]
[402585586,1768714238981,-200.0,0.000166,6]
[402585587,1768714238991,-420.97957517,0.00016601,2]
[402585588,1768714239003,-179.81534673,0.0001661,2]
[402585589,1768714239013,-500.0,0.0001661,2]
[402585590,1768714239025,-500.0,0.0001661,2]
[402585591,1768714239035,-500.0,0.0001661,2]
[402585592,1768714239048,-500.0,0.0001661,2]
[402585593,1768714239058,-837.95,0.0001661,2]
[402585594,1768714239068,-500.0,0.0001661,2]
[402585595,1768714239078,-500.0,0.0001661,2]
[402585596,1768714239087,-500.0,0.0001661,2]
[402585597,1768714239097,-500.0,0.0001661,2]
[402585598,1768714239106,-500.0,0.0001661,2]
[402585599,1768714239116,-500.0,0.0001661,2]
[402585600,1768714239125,-500.0,0.0001661,2]
[402585601,1768714239134,-500.0,0.0001661,2]
[402585602,1768714239143,-500.0,0.0001661,2]
[402585603,1768714239152,-500.0,0.0001661,2]
[402585604,1768714239161,-500.0,0.0001661,2]
[402585605,1768714239171,-500.0,0.0001661,2]
[402585606,1768714239180,-500.0,0.0001661,2]
[402585607,1768714239190,-500.0,0.0001661,2]
[402585608,1768714239199,-500.0,0.0001661,2]
[402585609,1768714239207,-500.0,0.0001661,2]
[402585610,1768714239216,-500.0,0.0001661,2]
[402585611,1768714239226,-500.0,0.0001661,2]
[402585612,1768714239235,-500.0,0.0001661,2]
[402585613,1768714239245,-500.0,0.0001661,2]
[402585614,1768714239254,-500.0,0.0001661,2]
[402585615,1768714239264,-500.0,0.0001661,2]
[402585616,1768714239273,-500.0,0.0001661,2]
[402585617,1768714239283,-500.0,0.0001661,2]
[402585618,1768714239292,-500.0,0.0001661,2]
[402585619,1768714239301,-1312.7448942,0.0001661,2]
[402585620,1768714239310,-500.0,0.0001661,2]
[402585621,1768714239319,-500.0,0.0001661,2]
[402585622,1768714239329,-500.0,0.0001661,2]
[402585623,1768714239338,-500.0,0.0001661,2]
[402585624,1768714239348,-500.0,0.0001661,2]
[402585625,1768714239356,-500.0,0.0001661,2]
[402585626,1768714239365,-500.0,0.0001661,2]
[402585627,1768714239375,-500.0,0.0001661,2]
[402585628,1768714239384,-500.0,0.0001661,2]
[402585629,1768714239393,-500.0,0.0001661,2]
[402585630,1768714239402,-500.0,0.0001661,2]
[402585631,1768714239413,-500.0,0.0001661,2]
[402585632,1768714239422,-500.0,0.0001661,2]
[402585633,1768714239443,-500.0,0.0001661,2]
[402585634,1768714239452,-500.0,0.0001661,2]
[402585635,1768714239461,-500.0,0.0001661,2]
[402585636,1768714239470,-500.0,0.0001661,2]
[402585637,1768714239479,-500.0,0.0001661,2]
[402585638,1768714239488,-550.49,0.0001661,2]
[402585639,1768714239498,-500.0,0.0001661,2]
[402585640,1768714239507,-500.0,0.0001661,2]
[402585641,1768714239516,-500.0,0.0001661,2]
[402585642,1768714239525,-500.0,0.0001661,2]
[402585643,1768714239534,-500.0,0.0001661,2]
[402585644,1768714239543,-519.4,0.0001661,2]
[402585645,1768714239552,-701.88,0.0001661,2]
[402585646,1768714239561,-500.0,0.0001661,2]
[402585647,1768714239570,-500.0,0.0001661,2]
[402585648,1768714239579,-500.0,0.0001661,2]
[402585649,1768714239588,-500.0,0.0001661,2]
[402585650,1768714239597,-500.0,0.0001661,2]
[402585651,1768714239607,-500.0,0.0001661,2]
[402585652,1768714239616,-500.0,0.0001661,2]
[402585653,1768714239625,-500.0,0.0001661,2]
[402585654,1768714239635,-211.44953419,0.0001661,2]
[402585655,1768714239644,-500.0,0.0001661,2]
[402585656,1768714239655,-500.0,0.0001661,2]
[402585657,1768714239665,-500.0,0.0001661,2]
[402585658,1768714239674,-500.0,0.0001661,2]
[402585659,1768714239684,-500.0,0.0001661,2]
[402585660,1768714239693,-500.0,0.0001661,2]
[402585661,1768714239702,-518.83,0.0001661,2]
[402585662,1768714239713,-500.0,0.0001661,2]
[402585663,1768714239722,-500.0,0.0001661,2]
[402585664,1768714239732,-500.0,0.0001661,2]
[402585665,1768714239742,-500.0,0.0001661,2]
[402585666,1768714239751,-500.0,0.0001661,2]
[402585667,1768714239760,-500.0,0.0001661,2]
[402585668,1768714239769,-500.0,0.0001661,2]
[402585669,1768714239779,-500.0,0.0001661,2]
[402585670,1768714239788,-500.0,0.0001661,2]
[402585671,1768714239798,-500.0,0.0001661,2]
[402585672,1768714239807,-500.0,0.0001661,2]
[402585673,1768714239816,-500.0,0.0001661,2]
[402585674,1768714239825,-500.0,0.0001661,2]
[402585675,1768714239834,-500.0,0.0001661,2]
[402585676,1768714239843,-500.0,0.0001661,2]
[402585677,1768714239853,-500.0,0.0001661,2]
[402585678,1768714239862,-500.0,0.0001661,2]
[402585679,1768714239871,-500.0,0.0001661,2]
[402585680,1768714239881,-500.0,0.0001661,2]
[402585681,1768714239890,-500.0,0.0001661,2]
[402585682,1768714239900,-500.0,0.0001661,2]
[402585683,1768714239909,-500.0,0.0001661,2]
[402585684,1768714239919,-500.0,0.0001661,2]
[402585685,1768714239928,-500.0,0.0001661,2]
[402585686,1768714239937,-500.0,0.0001661,2]
[402585687,1768714239947,-500.0,0.0001661,2]
[402585688,1768714239956,-500.0,0.0001661,2]
[402585689,1768714239968,-500.0,0.0001661,2]
[402585690,1768714239977,-500.0,0.0001661,2]
[402585691,1768714239986,-500.0,0.0001661,2]
[402585692,1768714239995,-500.0,0.0001661,2]
[402585693,1768714240005,-500.0,0.0001661,2]
[402585694,1768714240014,-500.0,0.0001661,2]
[402585695,1768714240024,-500.0,0.0001661,2]
[402585697,1768714240034,-500.0,0.0001661,2]
[402585699,1768714240045,-500.0,0.0001661,2]
[402585701,1768714240054,-500.0,0.0001661,2]
[402585703,1768714240062,-500.0,0.0001661,2]
[402585705,1768714240071,-347.55769841,0.0001661,2]
[402585707,1768714240080,-500.0,0.0001661,2]
[402585709,1768714240089,-500.0,0.0001661,2]
[402585710,1768714240099,-500.0,0.0001661,2]
[402585711,1768714240108,-1000.0,0.0001661,2]
[402585712,1768714240117,-500.0,0.00016611,2]
[402585713,1768714240126,-500.0,0.00016611,2]
[402585714,1768714240136,-500.0,0.00016611,2]
[402585715,1768714240145,-500.0,0.00016611,2]
[402585716,1768714240154,-266.48689435,0.00016611,2]
[402585717,1768714240164,-500.0,0.00016611,2]
[402585718,1768714240173,-500.0,0.00016611,2]
[402585719,1768714240183,-500.0,0.00016611,2]
[402585720,1768714240192,-500.0,0.00016611,2]
[402585721,1768714240202,-500.0,0.00016611,2]
[402585722,1768714240211,-500.0,0.00016611,2]
[402585723,1768714240221,-500.0,0.00016611,2]
[402585724,1768714240230,-500.0,0.00016611,2]
[402585725,1768714240240,-500.0,0.00016611,2]
[402585726,1768714240250,-500.0,0.00016611,2]
[402585727,1768714240260,-500.0,0.00016611,2]
[402585728,1768714240270,-500.0,0.00016611,2]
[402585729,1768714240280,-556.45496471,0.00016611,2]
[402585730,1768714240289,-500.0,0.00016611,2]
[402585731,1768714240299,-500.0,0.00016611,2]
[402585732,1768714240308,-500.0,0.00016611,2]
[402585733,1768714240317,-500.0,0.00016611,2]
[402585734,1768714240327,-500.0,0.00016611,2]
[402585735,1768714240336,-500.0,0.00016611,2]
[402585736,1768714240345,-300.0,0.00016611,2]
[402585737,1768714240356,-500.0,0.00016611,2]
[402585738,1768714240372,-500.0,0.00016611,2]
[402585739,1768714240382,-500.0,0.00016611,2]
[402585740,1768714240391,-500.0,0.00016611,2]
[402585741,1768714240401,-498.9451925,0.00016611,2]
[402585742,1768714240410,-514.76849807,0.00016611,2]
[402585743,1768714240419,-500.0,0.00016611,2]
[402585744,1768714240429,-500.0,0.00016611,2]
[402585745,1768714240439,-500.0,0.00016611,2]
[402585746,1768714240447,-500.0,0.00016611,2]
[402585747,1768714240456,-500.0,0.00016611,2]
[402585748,1768714240465,-500.0,0.00016611,2]
[402585749,1768714240475,-500.0,0.00016611,2]
[402585750,1768714240484,-500.0,0.00016611,2]
[402585751,1768714240493,-500.0,0.00016611,2]
[402585752,1768714240501,-500.0,0.00016611,2]
[402585753,1768714240508,-500.0,0.00016611,2]
[402585754,1768714240515,-500.0,0.00016611,2]
[402585755,1768714240523,-500.0,0.00016611,2]
[402585756,1768714240530,-500.0,0.00016611,2]
[402585757,1768714240537,-500.0,0.00016611,2]
[402585758,1768714240544,-500.0,0.00016611,2]
[402585759,1768714240551,-500.0,0.00016611,2]
[402585760,1768714240559,-500.0,0.00016611,2]
[402585761,1768714240568,-500.0,0.00016611,2]
[402585762,1768714240577,-500.0,0.00016611,2]
[402585763,1768714240586,-500.0,0.00016611,2]
[402585764,1768714240594,-500.0,0.00016611,2]
[402585765,1768714240604,-631.89,0.00016611,2]
[402585766,1768714240613,-243.10804439,0.00016611,2]
[402585767,1768714240623,-500.0,0.00016611,2]
[402585768,1768714240632,-500.0,0.00016611,2]
[402585769,1768714240642,-500.0,0.00016611,2]
[402585770,1768714240651,-500.0,0.00016611,2]
[402585771,1768714240660,-500.0,0.00016611,2]
[402585772,1768714240669,-500.0,0.00016611,2]
[402585773,1768714240678,-500.0,0.00016611,2]
[402585774,1768714240687,-500.0,0.00016611,2]
[402585775,1768714240696,-500.0,0.00016611,2]
[402585776,1768714240706,-500.0,0.00016611,2]
[402585778,1768714240715,-500.0,0.00016611,2]
[402585780,1768714240724,-153.69573239,0.00016611,2]
[402585781,1768714240734,-500.0,0.00016611,2]
[402585783,1768714240743,-500.0,0.00016611,2]
[402585784,1768714240752,-500.0,0.00016611,2]
[402585785,1768714240761,-500.0,0.00016611,2]
[402585786,1768714240770,-500.0,0.00016611,2]
[402585787,1768714240779,-500.0,0.00016611,2]
[402585788,1768714240788,-500.0,0.00016611,2]
[402585789,1768714240797,-504.82,0.00016611,2]
[402585790,1768714240806,-587.60399463,0.00016611,2]
[402585791,1768714240814,-500.0,0.00016611,2]
[402585792,1768714240823,-500.0,0.00016611,2]
[402585793,1768714240832,-500.0,0.00016611,2]
[402585794,1768714240841,-419.81749523,0.00016611,2]
[402585795,1768714240850,-523.30025418,0.00016611,2]
[402585796,1768714240859,-500.0,0.00016611,2]
[402585797,1768714240869,-500.0,0.00016611,2]
[402585798,1768714240878,-500.0,0.00016611,2]
[402585799,1768714240887,-500.0,0.00016611,2]
[402585800,1768714240895,-500.0,0.00016611,2]
[402585801,1768714240905,-500.0,0.00016611,2]
[402585802,1768714240914,-626.96,0.00016611,2]
[402585803,1768714240922,-500.0,0.00016611,2]
[402585804,1768714240931,-500.0,0.00016611,2]
[402585805,1768714240942,-500.0,0.00016611,2]
[402585806,1768714240951,-500.0,0.00016611,2]
[402585807,1768714240961,-500.0,0.00016611,2]
[402585808,1768714240973,-500.0,0.00016611,2]
[402585809,1768714240981,-500.0,0.00016611,2]
[402585810,1768714240990,-502.12,0.00016611,2]
[402585811,1768714240999,-500.0,0.00016611,2]
[402585812,1768714241009,-500.0,0.00016611,2]
[402585813,1768714241019,-500.0,0.00016611,2]
[402585814,1768714241029,-500.0,0.00016611,2]
[402585815,1768714241039,-500.0,0.00016611,2]
[402585816,1768714241048,-500.0,0.00016611,2]
[402585817,1768714241057,-513.14820409,0.00016611,2]
[402585818,1768714241066,-500.0,0.00016611,2]
[402585819,1768714241075,-500.0,0.00016611,2]
[402585820,1768714241084,-500.0,0.00016611,2]
[402585821,1768714241093,-500.0,0.00016611,2]
[402585822,1768714241103,-500.0,0.00016611,2]
[402585823,1768714241113,-500.0,0.00016611,2]
[402585824,1768714241123,-500.0,0.00016611,2]
[402585825,1768714241132,-500.0,0.00016611,2]
[402585826,1768714241141,-500.0,0.00016611,2]
[402585827,1768714241151,-500.0,0.00016611,2]
[402585828,1768714241160,-500.0,0.00016611,2]
[402585829,1768714241169,-124.2312056,0.00016611,2]
[402585830,1768714241926,-375.7687944,0.00016611,2]
[402585831,1768714241935,-500.0,0.00016611,2]
[402585832,1768714241944,-500.02,0.00016611,2]
[402585833,1768714241953,-500.0,0.00016611,2]
[402585834,1768714241965,-500.0,0.00016611,2]
[402585835,1768714241974,-521.7949499,0.00016611,2]
[402585836,1768714241982,-500.0,0.00016611,2]
[402585837,1768714241991,-500.0,0.00016611,2]
[402585838,1768714241999,-500.0,0.00016611,2]
[402585839,1768714242010,-500.0,0.00016611,2]
[402585840,1768714242019,-537.43260463,0.00016611,2]
[402585841,1768714242028,-566.23,0.00016611,2]
[402585842,1768714242039,-500.0,0.00016611,2]
[402585843,1768714242048,-500.0,0.00016611,2]
[402585844,1768714242057,-500.0,0.00016611,2]
[402585845,1768714242066,-743.27,0.00016611,2]
[402585846,1768714242074,-500.0,0.00016611,2]
[402585847,1768714242083,-500.0,0.00016611,2]
[402585848,1768714242093,-500.0,0.00016611,2]
[402585849,1768714242102,-500.0,0.00016611,2]
[402585850,1768714242111,-500.0,0.00016611,2]
[402585851,1768714242120,-547.02,0.00016611,2]
[402585852,1768714242129,-500.0,0.00016611,2]
[402585853,1768714242139,-500.0,0.00016611,2]
[402585854,1768714242148,-500.0,0.00016611,2]
[402585855,1768714242157,-500.0,0.00016611,2]
[402585856,1768714242166,-500.0,0.00016611,2]
[402585857,1768714242181,-500.0,0.00016611,2]
[402585858,1768714242190,-500.0,0.00016611,2]
[402585859,1768714242199,-500.0,0.00016611,2]
[402585860,1768714242208,-500.0,0.00016611,2]
[402585861,1768714242217,-500.0,0.00016611,2]
[402585862,1768714242226,-500.0,0.00016611,2]
[402585863,1768714242235,-500.0,0.00016611,2]
[402585864,1768714242245,-500.0,0.00016611,2]
[402585865,1768714242254,-500.0,0.00016611,2]
[402585866,1768714242263,-500.0,0.00016611,2]
[402585867,1768714242272,-500.0,0.00016611,2]
[402585868,1768714242282,-500.0,0.00016611,2]
[402585869,1768714242291,-500.0,0.00016611,2]
[402585870,1768714242301,-500.0,0.00016611,2]
[402585871,1768714242310,-500.0,0.00016611,2]
[402585872,1768714242319,-500.0,0.00016611,2]
[402585873,1768714242328,-500.0,0.00016611,2]
[402585874,1768714242337,-500.0,0.00016611,2]
[402585875,1768714242346,-500.0,0.00016611,2]
[402585876,1768714242355,-500.0,0.00016611,2]
[402585877,1768714242365,-500.0,0.00016611,2]
[402585878,1768714242374,-500.0,0.00016611,2]
[402585879,1768714242383,-500.0,0.00016611,2]
[402585880,1768714242392,-500.0,0.00016611,2]